bitfinex/quotes_ETHUSD_20250314
["timestamp","ask_amount","ask_price","bid_price","bid_amount"]
[1741960759568,6.005,1910.0,1909.5,10.4736]
[1741960759768,6.005,1910.0,1909.5,1.1247]
[1741960759938,11.24074,1910.0,1909.5,6.36164]
[1741960760143,5.236,1909.9,1909.5,1.1247]
[1741960760344,5.23624,1909.8,1909.4,0.7734]
[1741960760667,10.47258,1909.8,1909.4,0.7734]
[1741960760846,5.23624,1909.8,1909.4,0.7734]
[1741960761179,10.47255,1909.8,1909.4,0.7734]
[1741960761678,5.23651,1909.7,1909.4,0.7734]
[1741960761876,5.23651,1909.7,1909.2,0.7578]
[1741960761877,7.052275,1909.7,1909.2,0.7578]
[1741960762082,5.23779,1909.2,1909.1,0.01]
[1741960762377,12.88949264,1909.2,1909.1,0.01]
[1741960762576,5.23925,1908.7,1908.4,0.7994]
[1741960762755,5.23945,1908.6,1908.4,0.7994]
[1741960763082,5.24,1908.4,1908.0,0.7863]
[1741960763256,6.28732,1908.6,1908.0,6.02723]
[1741960763454,5.24,1908.4,1908.0,0.92353426]
[1741960763643,10.48015,1908.4,1908.0,0.92353426]
[1741960763844,5.24042,1908.3,1908.0,0.92353426]
[1741960764070,5.24,1908.4,1908.0,0.88432447]
[1741960764282,6.82967026,1908.4,1908.0,0.88432447]
[1741960764984,11.24475,1908.5,1908.0,0.88432447]
[1741960765344,5.24001,1908.4,1908.0,0.88432447]
[1741960765586,6.005,1908.5,1908.0,0.88432447]
[1741960765789,11.24491,1908.5,1908.0,0.88432447]
[1741960766008,6.005,1908.5,1908.1,5.24078]
[1741960766299,6.005,1908.5,1908.2,0.09880176]
[1741960766484,3.0,1909.0,1908.3,5.99114]
[1741960766806,5.23917,1908.7,1908.3,0.86569279]
[1741960767095,5.23999,1908.4,1908.3,0.11459279]
[1741960767286,5.23999,1908.4,1908.3,0.07639519]
[1741960767490,5.23999,1908.4,1908.3,0.09822238]
[1741960767666,5.23999,1908.4,1908.1,0.7596]
[1741960768158,6.005,1908.6,1908.2,0.09868065]
[1741960768358,5.24002,1908.4,1908.1,0.7596]
[1741960768771,5.24002,1908.4,1908.2,0.09868065]
[1741960768958,5.24002,1908.4,1908.1,0.7596]
[1741960769160,6.005,1908.6,1908.2,0.09868065]
[1741960769377,11.24449,1908.6,1908.1,0.7596]
[1741960769574,5.23972,1908.5,1908.2,0.09868065]
[1741960769802,7.653372,1908.6,1908.1,0.7596]
[1741960770005,12.892812,1908.6,1908.2,0.09868065]
[1741960770204,12.892812,1908.6,1908.1,0.7596]
[1741960770205,10.47962,1908.5,1908.1,0.7596]
[1741960770374,5.23973,1908.5,1908.2,0.09868065]
[1741960770577,6.5290402,1908.5,1908.1,0.7596]
[1741960770779,5.24004,1908.4,1908.2,0.09868065]
[1741960770976,6.5290402,1908.5,1908.0,0.756]
[1741960771165,6.5290402,1908.5,1908.0,5.99707]
[1741960771505,6.5290402,1908.5,1908.1,0.09913895]
[1741960771506,11.7689102,1908.5,1908.1,0.09913895]
[1741960771700,1.17689102,1908.4,1908.1,0.09913895]
[1741960772801,6.41696102,1908.4,1908.1,0.09913895]
[1741960774295,6.005,1908.5,1908.1,5.33973895]
[1741960774970,11.24492,1908.5,1908.1,0.09913895]
[1741960775196,11.24492,1908.5,1907.9,5.3551294]
[1741960775197,5.24018,1908.4,1907.9,5.3551294]
[1741960775403,11.24518,1908.4,1908.0,0.07841253]
[1741960775576,5.24026,1908.3,1908.0,0.07841253]
[1741960775778,6.005,1908.4,1908.1,0.8249]
[1741960775974,6.005,1908.4,1908.2,0.07771976]
[1741960776173,0.55,1908.9,1908.2,0.07771976]
[1741960776174,6.005,1909.0,1908.4,5.23981]
[1741960776384,6.005,1909.0,1908.6,0.8249]
[1741960776602,5.23864,1908.9,1908.6,0.92299266]
[1741960776787,0.523864,1908.8,1908.6,0.09809266]
[1741960777034,6.005,1909.0,1908.4,0.8189]
[1741960777312,5.23863,1908.9,1908.5,0.09855078]
[1741960777473,6.005,1909.0,1908.5,5.33823078]
[1741960777675,11.24343,1909.0,1908.5,5.33823078]
[1741960777980,6.005,1909.0,1908.5,0.09855078]
[1741960778176,6.9055,1909.0,1908.5,0.09855078]
[1741960778381,5.23931,1908.7,1908.5,0.09855078]
[1741960778683,6.9055,1909.0,1908.5,0.09855078]
[1741960778684,5.23903,1908.8,1908.5,0.09855078]
[1741960778884,3.6228,1908.9,1908.5,0.09855078]
[1741960779112,5.23904,1908.8,1908.3,10.48024]
[1741960779407,3.0,1908.9,1908.4,5.33862298]
[1741960779623,5.23889,1908.8,1908.4,0.09866298]
[1741960779806,5.23889,1908.8,1908.3,6.369734]
[1741960779976,5.23889,1908.8,1908.4,0.09866298]
[1741960780193,5.23889,1908.8,1908.3,6.369714]
[1741960780489,5.23889,1908.8,1908.4,0.09866298]
[1741960780996,6.005,1909.0,1908.6,0.7647]
[1741960781711,6.005,1909.0,1908.6,6.00408]
[1741960782110,6.005,1909.0,1908.7,5.23901]
[1741960782321,6.005,1909.0,1908.6,6.00394]
[1741960782621,6.005,1909.3,1908.9,0.7643]
[1741960782803,6.005,1909.5,1909.1,5.23783]
[1741960782977,7.052275,1909.7,1909.0,6.00241]
[1741960783178,5.23684,1909.6,1909.1,5.238]
[1741960783686,7.052275,1909.7,1909.2,5.23758]
[1741960784116,0.7052275,1909.6,1909.0,6.0024]
[1741960784279,5.23711,1909.5,1909.0,0.7643]
[1741960784484,0.7052275,1909.6,1909.3,5.23749]
[1741960785015,6.005,1909.7,1909.4,0.8288]
[1741960785722,11.24142,1909.7,1909.4,0.8288]
[1741960785901,6.005,1909.7,1909.4,0.8288]
[1741960786278,6.005,1909.7,1909.4,6.06604]
[1741960786484,5.23588,1909.9,1909.4,0.8288]
[1741960786726,5.23616,1909.8,1909.4,0.8288]
[1741960787726,1.446388,1909.9,1909.4,6.0659]
[1741960787727,0.823588,1909.9,1909.4,6.0659]
[1741960788081,6.059488,1909.9,1909.4,0.8288]
[1741960788316,0.823588,1909.9,1909.4,6.06585]
[1741960788507,0.823588,1909.9,1909.5,5.23692]
[1741960788706,0.823588,1909.9,1909.4,11.30294]
[1741960789333,0.823588,1909.9,1909.4,6.06585]
[1741960789539,0.823588,1909.9,1909.4,0.8288]
[1741960789738,11.24051,1910.1,1909.6,0.7688]
[1741960790045,6.005,1910.1,1909.6,0.7688]
[1741960790403,5.23561,1910.0,1909.6,0.7688]
[1741960790605,6.005,1910.1,1909.6,0.7688]
[1741960790810,7.429027,1910.1,1909.6,6.00549]
[1741960791036,7.429027,1910.1,1909.7,5.23628]
[1741960791753,7.429027,1910.1,1909.6,0.7688]
[1741960791912,7.429027,1910.1,1909.7,5.23625]
[1741960792452,7.429027,1910.1,1909.7,5.23624]
[1741960792619,7.429027,1910.1,1909.6,0.7688]
[1741960792826,7.429027,1910.1,1909.7,5.23637]
[1741960795454,0.7429027,1910.0,1909.6,6.00547]
[1741960796263,10.62516696,1910.0,1909.6,0.7688]
[1741960796440,1.0625167,1909.9,1909.6,0.7688]
[1741960796637,6.9212967,1909.9,1909.4,5.23702]
[1741960796839,9.88259426,1909.8,1909.3,0.7615]
[1741960797354,5.23752,1909.3,1908.6,6.02487]
[1741960797525,6.005,1909.3,1908.9,5.2384]
[1741960798128,6.005,1909.3,1909.1,5.23787]
[1741960798329,0.6228,1909.7,1909.0,0.7517]
[1741960798540,6.005,1910.0,1909.5,5.23683]
[1741960798764,6.005,1910.0,1909.3,5.99457]
[1741960798968,5.23587,1909.9,1909.3,5.99457]
[1741960799275,5.23618,1909.8,1909.3,1.356757]
[1741960799428,0.6228,1909.8,1909.3,5.99465]
[1741960799632,6.359957,1909.9,1909.4,5.23721]
[1741960799872,6.359957,1909.9,1909.3,11.23201]
[1741960800174,1.124087,1909.9,1909.3,5.99465]
[1741960800356,1.124087,1909.9,1909.3,0.7573]
[1741960800534,1.124087,1909.9,1907.2,0.54652641]
[1741960800535,7.0744,1909.0,1907.2,0.54652641]
[1741960800729,0.55,1906.9,1905.8,5.42078785]
[1741960800942,3.55,1905.8,1904.0,5.25186]
[1741960801185,8.14832913,1905.2,1904.1,5.25155]
[1741960801383,8.79906,1905.1,1903.6,0.1]
[1741960801587,3.55,1904.8,1903.1,12.85537252]
[1741960801790,5.14832913,1903.2,1903.1,12.85537252]
[1741960801956,8.14832913,1903.2,1903.1,12.85537252]
[1741960802159,13.40262913,1903.2,1903.1,11.90126284]
[1741960802354,3.0,1903.2,1903.1,11.90126284]
[1741960802546,8.2543,1903.2,1903.1,11.90126284]
[1741960802791,8.8043,1903.2,1903.1,11.90126284]
[1741960802959,3.55,1903.2,1903.1,11.35126284]
[1741960803297,5.25514,1902.9,1901.2,0.1]
[1741960803465,5.00407921,1902.0,1901.7,5.25845]
[1741960803662,5.00407921,1901.8,1901.6,5.25846]
[1741960803856,10.05665,1903.2,1902.5,5.25622]
[1741960803857,1.58948285,1903.2,1902.5,5.25622]
[1741960804190,0.9297,1902.2,1900.3,7.5]
[1741960804393,5.26311,1900.1,1898.6,16.62568116]
[1741960804600,0.1,1900.3,1899.1,5.26551]
[1741960804601,0.526311,1900.0,1899.1,5.26551]
[1741960804774,3.0,1899.9,1898.0,0.55553819]
[1741960805092,3.0,1899.9,1896.6,2.60807131]
[1741960805093,5.27648,1895.2,1894.2,1e-05]
[1741960805297,5.27648,1895.2,1892.6,16.11]
[1741960805298,2.6721553,1896.3,1893.7,1.67271219]
[1741960805502,5.28038,1893.8,1892.2,30.54]
[1741960805792,5.28038,1893.8,1890.5,5.28948]
[1741960805793,38.913306,1891.5,1886.0,10.05451667]
[1741960806009,0.1,1890.5,1885.9,16.0]
[1741960806150,0.1,1886.6,1883.1,25.03250141]
[1741960806449,5.30348,1885.6,1884.3,5.30691]
[1741960806650,5.3026,1885.9,1884.6,0.1]
[1741960806897,7.5,1884.5,1884.1,35.0]
[1741960807227,3.19618383,1884.4,1881.4,17.46876227]
[1741960807384,2.64182524,1886.7,1882.6,17.389]
[1741960807568,2.64182524,1886.7,1884.5,0.1]
[1741960807781,2.64182524,1886.7,1881.4,2.70383728]
[1741960807782,4.65780885,1886.6,1884.6,15.11970739]
[1741960808108,0.55010581,1887.1,1883.5,0.7561]
[1741960808109,0.55010581,1887.1,1885.9,5.30234]
[1741960808315,5.29243,1889.5,1886.8,5.29974]
[1741960808643,0.1,1887.5,1885.5,7.20696422]
[1741960808817,0.1,1887.5,1884.7,18.90097074]
[1741960808818,0.01,1888.9,1887.4,7.20696422]
[1741960809078,2.66629529,1890.6,1887.4,100.0]
[1741960809346,1.53e-06,1887.4,1887.3,5.29857]
[1741960809555,1.53e-06,1887.4,1885.5,2.7970835]
[1741960809556,7.99e-06,1887.4,1886.8,17.427]
[1741960809856,7.5,1888.9,1887.3,7.30696422]
[1741960810151,2.68979095,1891.5,1888.3,7.20696422]
[1741960810460,2.60645122,1891.8,1889.5,0.1]
[1741960810619,15.1344785,1892.9,1889.7,0.1]
[1741960810620,9.0746871,1892.9,1889.7,0.1]
[1741960810813,1.592463,1892.0,1891.0,5.2882]
[1741960811023,2.69283996,1894.4,1891.2,9.60925662]
[1741960811277,5.27974,1894.1,1891.4,5.28694]
[1741960811419,7.93412379,1893.9,1892.0,0.1]
[1741960811616,2.69283996,1894.4,1892.3,0.1]
[1741960811859,7.5,1894.9,1893.9,9.60925662]
[1741960812224,6.02,1894.3,1894.0,24.421]
[1741960812371,6.02,1895.2,1894.0,24.521]
[1741960812511,6.02,1895.4,1894.1,0.1]
[1741960812714,1.62794178,1894.8,1894.0,24.421]
[1741960813053,15.11484127,1897.3,1895.1,0.0992]
[1741960813054,10.04,1896.8,1895.1,0.0992]
[1741960813358,16.06,1896.7,1895.1,0.0992]
[1741960813560,16.06,1896.6,1896.0,0.0992]
[1741960813743,16.06,1896.6,1896.1,17.444]
[1741960813908,16.06,1896.6,1896.5,0.0992]
[1741960814108,16.06,1896.6,1894.5,6.0895]
[1741960814109,17.5432,1896.1,1894.5,0.8113]
[1741960814333,10.04,1896.0,1894.5,0.8113]
[1741960814560,10.04,1895.9,1894.5,0.8113]
[1741960814770,0.70268021,1895.2,1894.5,0.8113]
[1741960815048,5.68342853,1896.4,1894.6,5.27815]
[1741960815256,0.00539,1897.2,1895.5,5.27551]
[1741960815550,0.00539,1897.2,1894.8,5.2776]
[1741960815852,0.7036828,1896.1,1894.7,10.13707162]
[1741960816034,0.7036828,1896.1,1895.6,5.27523]
[1741960816245,18.0,1895.9,1894.7,0.527815]
[1741960816541,18.0,1895.9,1894.1,12.37669231]
[1741960816746,18.0,1895.9,1895.7,5.27501]
[1741960816899,2.83e-06,1896.1,1896.0,5.27426]
[1741960817105,0.00539,1897.2,1895.8,17.446]
[1741960817504,0.00539,1897.2,1895.8,19.1906]
[1741960817838,0.00539,1897.2,1895.8,17.446]
[1741960818007,0.33032778,1896.8,1895.9,5.35758664]
[1741960818209,0.33032778,1896.8,1896.3,5.27318]
[1741960818438,0.33032778,1896.8,1896.1,5.27376]
[1741960818625,0.33032778,1896.8,1895.8,17.446]
[1741960818626,0.33032778,1896.8,1896.4,0.07758243]
[1741960818858,0.33032778,1896.8,1895.8,17.446]
[1741960818859,0.00539,1897.2,1895.8,17.446]
[1741960819029,10.04,1896.8,1896.5,0.07734607]
[1741960819238,10.04,1896.8,1895.8,17.446]
[1741960819434,10.04,1896.8,1895.8,18.2228]
[1741960819774,10.04,1896.8,1895.9,0.07864641]
[1741960820127,10.04,1896.8,1896.0,0.07210671]
[1741960820331,0.00539,1897.2,1896.9,5.27152]
[1741960820623,10.04,1897.1,1896.3,3.0]
[1741960820824,3.787,1896.1,1894.7,1.04849707]
[1741960821074,10.04,1897.1,1896.4,0.06868612]
[1741960821075,6.02,1897.1,1896.4,0.06868612]
[1741960821412,10.04,1897.1,1895.4,5.27593]
[1741960821647,10.04,1897.0,1896.5,0.06865057]
[1741960821739,0.55,1897.0,1896.0,5.27425]
[1741960821947,0.55,1896.8,1895.5,0.527593]
[1741960822102,0.00539,1897.2,1896.3,5.27327]
[1741960822299,0.00539,1897.2,1896.3,8.27334]
[1741960822531,0.00539,1897.2,1896.4,0.06676466]
[1741960822739,10.04,1898.0,1897.1,3.0]
[1741960822944,4.86577588,1898.2,1897.2,17.444]
[1741960823149,4.86577588,1898.2,1898.1,5.26842]
[1741960823349,14.90577588,1898.2,1898.1,5.26842]
[1741960823649,14.90577588,1898.2,1897.2,19.4884]
[1741960823650,9.97758928,1898.1,1897.2,19.4884]
[1741960823840,4.86577588,1898.2,1898.1,5.26842]
[1741960824040,14.90577588,1898.2,1898.1,5.26842]
[1741960824341,0.7155355,1899.4,1897.2,24.75912]
[1741960824650,0.7155355,1899.4,1898.1,0.06204228]
[1741960824651,3.0,1899.4,1898.1,0.06204228]
[1741960824938,3.0,1899.4,1898.2,0.0669423]
[1741960825500,2.74011702,1899.8,1897.2,12.61674635]
[1741960825713,0.7966,1899.8,1897.2,12.61674635]
[1741960826264,9.60925662,1899.6,1898.4,5.2675]
[1741960826469,0.96092566,1899.6,1898.6,5.267]
[1741960826624,0.7966,1899.8,1898.8,5.26646]
[1741960826824,0.7966,1899.8,1898.7,0.07151607]
[1741960827030,0.8214,1900.6,1899.7,5.26393]
[1741960827226,0.8214,1900.6,1899.9,5.26337]
[1741960827431,0.8214,1900.6,1899.2,5.26536]
[1741960827734,5.6408884,1900.5,1898.4,17.44]
[1741960827934,0.56408884,1900.4,1899.4,5.26477]
[1741960828137,10.17334546,1900.4,1898.4,10.6583592]
[1741960828350,10.17334546,1900.4,1898.5,5.26731]
[1741960828590,0.55,1900.3,1896.9,0.796]
[1741960828746,3.0,1897.8,1896.5,5.27284]
[1741960828961,3.0,1896.5,1894.8,17.438]
[1741960829183,0.55,1896.9,1896.6,0.07316637]
[1741960829569,3.0,1897.6,1896.5,5.27282]
[1741960829751,3.0,1897.6,1896.7,0.06648893]
[1741960829752,0.55,1897.5,1896.7,0.06648893]
[1741960830023,3.0,1897.6,1896.8,0.06619376]
[1741960830191,0.55,1897.5,1896.8,0.06619376]
[1741960830380,0.55,1897.5,1895.5,17.439]
[1741960830537,3.0,1897.0,1895.8,5.27459]
[1741960830854,3.55,1897.3,1896.3,5.27315]
[1741960831051,0.74593351,1897.5,1895.9,0.06885137]
[1741960831256,0.74593351,1897.5,1896.4,0.06737461]
[1741960831579,0.74593351,1897.5,1897.4,5.27036]
[1741960831899,0.74593351,1897.5,1897.1,17.439]
[1741960832034,1.29593351,1897.5,1897.4,0.07086577]
[1741960832256,2.57780299,1897.6,1896.7,5.27204]
[1741960832450,0.55,1897.7,1896.5,5.2726]
[1741960832624,0.55,1897.5,1896.8,0.07281314]
[1741960832831,0.55,1897.5,1896.6,5.34604254]
[1741960833038,0.55,1897.5,1896.4,17.439]
[1741960833039,0.657,1897.7,1896.9,0.07248849]
[1741960833230,0.657,1897.7,1896.4,17.439]
[1741960833231,6.02,1898.5,1896.4,17.439]
[1741960833451,6.02,1898.3,1898.2,5.26814]
[1741960833649,2.42869746,1897.7,1897.6,8.02226861]
[1741960833854,2.42869746,1897.7,1896.5,5.27285]
[1741960834187,9.60925662,1897.1,1896.6,0.07346254]
[1741960834473,6.02,1896.4,1895.8,5.27479]
[1741960834778,5.27405,1896.1,1895.8,0.06292374]
[1741960834932,4.3041,1896.2,1895.8,0.06921612]
[1741960835130,6.02,1896.1,1893.6,6.58503]
[1741960835361,0.55,1895.2,1894.3,5.27898]
[1741960835568,3.0,1895.0,1894.0,5.27958]
[1741960835768,6.02,1894.9,1894.6,5.27806]
[1741960836092,6.02,1894.9,1893.4,5.28139]
[1741960836093,3.0,1894.8,1894.5,5.27842]
[1741960836233,6.02,1894.9,1894.8,5.2776]
[1741960836441,5.27668,1895.2,1894.0,5.27978]
[1741960836637,3.0,1895.0,1893.1,9.61017903]
[1741960836861,3.0,1894.8,1893.1,9.61017903]
[1741960837222,3.0,1894.8,1893.8,5.28028]
[1741960837485,3.0,1894.6,1893.9,5.2801]
[1741960837644,1.8631,1892.9,1891.2,1.588774]
[1741960837845,1.3131,1892.9,1890.4,18.7433]
[1741960838034,3.0,1893.3,1892.0,5.28541]
[1741960838228,0.05298449,1893.8,1893.6,5.28094]
[1741960838487,0.79892353,1893.8,1893.7,5.28066]
[1741960838689,3.53e-06,1893.8,1893.7,5.28066]
[1741960839079,6.02000353,1893.8,1893.2,5.28184]
[1741960839399,6.02000353,1893.8,1892.8,17.445]
[1741960839690,6.02000353,1893.8,1891.7,17.454]
[1741960839691,9.02,1893.7,1891.7,17.454]
[1741960839890,3.55,1893.2,1892.1,5.28497]
[1741960840112,3.55,1893.2,1890.9,5.28826]
[1741960840113,6.02,1891.6,1890.6,1.2316]
[1741960840317,6.02,1891.6,1889.1,0.01]
[1741960840318,0.55,1890.6,1889.9,5.29122]
[1741960840451,3.0,1890.5,1889.9,5.29123]
[1741960840651,6.02,1890.6,1890.0,5.29095]
[1741960840848,6.02,1891.2,1889.1,17.464]
[1741960841059,1.42094032,1891.8,1889.3,1.2412]
[1741960841265,6.02,1892.9,1891.5,1.2412]
[1741960841468,0.48132397,1892.0,1891.8,5.28597]
[1741960841823,0.74593351,1893.0,1891.5,1.2412]
[1741960842141,0.74593351,1893.0,1892.7,5.28319]
[1741960842367,14.60545579,1893.0,1891.2,3.0]
[1741960842519,6.02,1892.9,1892.7,5.28325]
[1741960842706,20.62545579,1893.0,1890.4,5.28988]
[1741960844871,4.01915406,1894.7,1893.2,17.467]
[1741960845196,10.03915406,1894.7,1893.5,5.28111]
[1741960845397,1.2838,1894.5,1892.5,5.28401]
[1741960845701,11.29894,1894.4,1893.3,5.28161]
[1741960845862,11.66965411,1893.7,1892.6,5.28373]
[1741960846062,4.11e-06,1893.7,1893.6,5.28094]
[1741960847001,7.2764,1895.4,1895.2,5.27624]
[1741960847207,7.2764,1895.4,1895.0,5.27681]
[1741960847208,6.02,1896.1,1895.7,5.27509]
[1741960847396,0.50582438,1896.0,1895.7,5.27509]
[1741960847873,7.12121471,1895.8,1895.7,5.27509]
[1741960848074,0.50582438,1896.0,1895.9,5.27453]
[1741960848276,0.50582438,1896.0,1895.8,5.27476]
[1741960848501,4.38e-06,1896.0,1895.9,5.27453]
[1741960848890,5.31565852,1896.8,1896.6,5.27231]
[1741960849095,11.33565852,1896.8,1896.1,5.27374]
[1741960849403,11.33565852,1896.8,1896.4,5.27311]
[1741960849619,11.33565852,1896.8,1895.3,5.2762]
[1741960849835,6.02,1896.7,1894.6,5.27815]
[1741960849995,9.60925662,1896.5,1894.6,0.654385]
[1741960850329,6.02,1896.4,1896.3,5.27342]
[1741960850621,6.02,1896.6,1896.2,5.27359]
[1741960850835,5.31565852,1896.8,1896.7,5.27231]
[1741960850836,11.33565852,1896.8,1896.7,5.27231]
[1741960851181,1e-05,1896.9,1896.8,5.27203]
[1741960851525,6.02,1898.5,1896.6,13.48851839]
[1741960851679,11.33565852,1898.7,1897.9,5.26894]
[1741960851885,11.33565852,1898.7,1897.8,5.26902]
[1741960852087,5.26703,1898.6,1897.4,5.27026]
[1741960852327,6.02,1898.5,1897.6,5.26975]
[1741960852654,20.19188514,1898.7,1897.2,5.27065]
[1741960852655,6.02,1898.6,1897.2,5.27065]
[1741960852863,1.3203,1897.9,1896.6,5.27233]
[1741960853013,1.3203,1897.9,1896.3,5.27334]
[1741960853014,0.55,1897.5,1896.3,5.27334]
[1741960853210,6.02,1897.4,1896.7,5.27204]
[1741960853409,0.55,1897.2,1895.3,1.3271]
[1741960853605,3.0,1897.0,1895.7,5.27509]
[1741960853830,3.0,1897.0,1896.3,5.27342]
[1741960854038,0.55,1897.0,1896.1,5.27385]
[1741960854242,0.55,1897.0,1895.7,5.27502]
[1741960854243,3.0,1896.8,1895.7,5.27498]
[1741960854437,1.2653,1896.6,1895.4,5.27584]
[1741960854642,1.2653,1896.6,1895.7,5.27498]
[1741960854845,3.55,1896.4,1894.3,5.27889]
[1741960855033,15.98425662,1896.3,1894.7,5.27788]
[1741960855342,16.17925662,1896.3,1895.8,5.2748]
[1741960855544,6.02,1896.3,1895.6,5.27527]
[1741960855847,0.55,1896.1,1894.4,0.527889]
[1741960856018,6.02,1896.0,1894.0,17.454]
[1741960856357,11.50195662,1895.7,1893.8,5.28011]
[1741960856511,5.27593,1895.4,1894.3,5.27877]
[1741960856711,3.55,1895.0,1894.4,5.27866]
[1741960856953,6.02,1894.9,1894.1,5.27937]
[1741960857163,6.02,1894.9,1894.1,5.27933]
[1741960857364,6.02,1894.9,1894.1,5.27931]
[1741960857570,0.55,1894.9,1894.2,5.27905]
[1741960857730,6.02,1894.8,1893.2,1.2685]
[1741960857932,6.02,1894.8,1893.6,5.28084]
[1741960858129,6.02,1894.8,1893.5,5.2812]
[1741960858325,0.55,1894.3,1892.8,5.28314]
[1741960858558,6.08377418,1894.2,1893.1,5.29217]
[1741960858864,6.02,1894.2,1893.4,5.2815]
[1741960859072,10.55357703,1894.7,1894.6,5.278]
[1741960859426,7.03e-06,1894.7,1894.6,5.33077621]
[1741960859631,1.44e-06,1895.2,1895.1,5.27676]
[1741960859890,1.44e-06,1895.2,1895.1,8.27676]
[1741960860101,1.44e-06,1895.2,1895.1,5.27676]
[1741960860555,6.0859394,1896.1,1895.6,5.27519]
[1741960860900,8.82195587,1896.3,1894.3,1.5956]
[1741960860901,8.82195587,1896.3,1894.9,3.0]
[1741960861059,8.82195587,1896.3,1895.0,0.3]
[1741960861254,14.84195587,1896.3,1896.1,5.27398]
[1741960861461,8.82195587,1896.3,1896.1,5.27378]
[1741960861663,8.82195587,1896.3,1895.9,5.27442]
[1741960861664,8.82195587,1896.3,1895.9,5.27436]
[1741960861867,0.06592226,1896.2,1895.5,5.27545]
[1741960862156,6.02,1896.3,1895.5,5.27557]
[1741960862391,6.02,1896.5,1895.5,5.803127]
[1741960862690,6.08591138,1897.0,1895.5,2.130757]
[1741960862894,6.08591138,1897.0,1896.7,5.27205]
[1741960863202,6.08591138,1897.0,1896.4,5.27291]
[1741960863498,6.02,1897.0,1895.4,0.55]
[1741960863792,7.5741,1897.2,1896.7,5.27228]
[1741960864087,1.5541,1897.2,1897.1,5.2712]
[1741960864289,6.02,1897.6,1896.0,5.27421]
[1741960864589,7.5238,1897.8,1896.1,17.982421]
[1741960864795,7.5238,1897.8,1897.7,5.26953]
[1741960865101,6.02,1897.8,1897.3,5.27037]
[1741960865314,6.02,1898.1,1898.0,5.2687]
[1741960865456,6.02,1898.1,1897.8,5.26905]
[1741960865656,1.56967821,1898.2,1897.8,5.26911]
[1741960865657,7.5238,1898.2,1897.8,5.26911]
[1741960865859,16.0150814,1898.0,1897.9,5.26898]
[1741960866053,16.0150814,1898.0,1897.8,5.26907]
[1741960866282,16.0150814,1898.0,1897.9,5.26898]
[1741960866787,16.0150814,1898.0,1897.6,5.26972]
[1741960866955,16.0150814,1898.0,1897.0,1.2667]
[1741960866956,0.06586211,1897.9,1897.0,1.2667]
[1741960867161,16.0150814,1898.0,1897.6,5.26961]
[1741960867396,16.0150814,1898.0,1897.5,5.27007]
[1741960867600,16.0150814,1898.0,1897.5,5.26995]
[1741960867895,0.06586075,1897.9,1897.2,5.27072]
[1741960868096,0.06586075,1897.9,1896.3,3.0]
[1741960868097,0.55,1897.6,1895.8,1.2667]
[1741960868397,0.55,1897.1,1896.3,5.27338]
[1741960868559,3.55,1896.7,1895.5,5.27565]
[1741960868755,6.08592719,1896.6,1895.8,5.27459]
[1741960868954,6.08592719,1896.6,1896.1,10.54759]
[1741960869183,0.06591831,1896.8,1895.5,5.27565]
[1741960869369,1.515,1896.9,1896.8,5.27203]
[1741960869797,22.0350814,1897.1,1897.0,5.27148]
[1741960870097,22.0350814,1897.1,1896.9,5.27169]
[1741960870098,16.0150814,1897.1,1896.9,5.27149]
[1741960870296,0.0658892,1897.0,1895.9,17.448]
[1741960870509,0.0658892,1897.0,1896.2,5.27346]
[1741960870658,0.0658892,1897.0,1895.8,5.27466]
[1741960870659,6.0858892,1897.0,1895.8,5.27466]
[1741960870861,0.55,1896.7,1895.9,5.2745]
[1741960871128,6.08592061,1896.6,1895.8,5.27467]
[1741960871263,3.0,1896.5,1895.8,5.27467]
[1741960871466,0.0659272,1896.4,1895.4,5.27565]
[1741960871808,6.02,1896.4,1896.3,5.27342]
[1741960871961,7.6298,1896.5,1896.3,5.27329]
[1741960872306,7.93905846,1896.4,1896.3,5.27342]
[1741960872609,8.46e-06,1896.4,1896.3,5.27342]
[1741960872775,8.46e-06,1896.4,1896.3,6.328125]
[1741960872960,0.06589032,1897.7,1897.3,5.27064]
[1741960873164,0.06589032,1897.7,1896.6,5.27247]
[1741960873465,0.06589032,1897.7,1897.2,5.27076]
[1741960873666,0.06589032,1897.7,1896.8,5.27203]
[1741960873864,1.535,1897.8,1896.8,0.527203]
[1741960874090,1.6043,1898.3,1898.0,5.26859]
[1741960874402,1.67015443,1898.3,1897.5,5.26989]
[1741960874602,1.67015443,1898.3,1897.5,5.26987]
[1741960874804,5.26814,1898.2,1896.7,5.27231]
[1741960875048,0.06587626,1898.1,1896.6,22.72036]
[1741960875338,3.55,1898.0,1897.1,5.27099]
[1741960875535,0.06587633,1897.9,1896.7,5.27228]
[1741960875747,1.6043,1898.3,1897.5,5.26999]
[1741960876047,6.02,1898.7,1897.1,5.2712]
[1741960876218,0.06584328,1898.8,1898.5,5.26723]
[1741960876415,0.06584328,1898.8,1898.4,5.26741]
[1741960876812,0.06584328,1898.8,1898.7,5.26676]
[1741960877142,1.5368,1898.9,1898.4,5.26743]
[1741960877317,0.06583039,1898.8,1898.3,5.26783]
[1741960877517,1.60263039,1898.9,1898.1,5.26821]
[1741960877833,1.60263039,1898.9,1898.2,5.26799]
[1741960878140,3.0,1898.7,1897.9,5.26877]
[1741960878335,0.06585028,1898.6,1897.2,5.27092]
[1741960878538,6.08585715,1898.7,1897.7,5.26942]
[1741960878837,1.00356691,1898.8,1898.7,5.26676]
[1741960879407,1.00356691,1898.8,1898.6,5.26687]